bitfinex/quotes_ETHUSD_20250909
["timestamp","ask_amount","ask_price","bid_price","bid_amount"]
[1757456590675,6.3776,4310.9,4310.8,0.11720001]
[1757456593145,6.3776,4310.9,4310.8,2.43695504]
[1757456593654,5.644,4310.9,4310.8,2.74265504]
[1757456593879,5.644,4310.9,4310.8,0.11720001]
[1757456594745,5.9388,4310.9,4310.8,0.11720001]
[1757456595378,5.9388,4310.9,4310.8,2.43695504]
[1757456595676,5.644,4310.9,4310.8,2.43695504]
[1757456597762,5.644,4310.9,4310.8,2.74265504]
[1757456598252,5.644,4310.9,4310.8,2.43695504]
[1757456601791,6.3776,4310.9,4310.8,0.11720001]
[1757456602107,5.9388,4310.9,4310.8,2.43695504]
[1757456602677,5.644,4310.9,4310.8,2.74265504]
[1757456603712,5.85956968,4310.9,4310.8,2.74265504]
[1757456604504,5.85956968,4310.9,4310.8,2.43695504]
[1757456604728,5.644,4310.9,4310.8,2.43695504]
[1757456605233,5.9388,4310.9,4310.8,2.43695504]
[1757456606488,5.643,4310.9,4310.8,3.20095504]
[1757456607222,1.782,4310.9,4310.8,4.23503479]
[1757456607427,5.139,4310.9,4310.8,4.23503479]
[1757456607903,5.139,4310.9,4310.8,3.79703479]
[1757456611938,5.4293,4310.9,4310.8,0.71327976]
[1757456612104,5.8598,4310.9,4310.8,2.43695504]
[1757456615713,5.4293,4310.9,4310.8,2.43695504]
[1757456615954,5.139,4310.9,4310.8,2.43695504]
[1757456616133,5.4293,4310.9,4310.8,2.43695504]
[1757456616321,5.8598,4310.9,4310.8,2.43695504]
[1757456617641,1.782,4310.9,4310.8,4.15633579]
[1757456617813,5.642,4310.9,4310.8,4.15633579]
[1757456619024,5.642,4310.9,4310.8,2.91283579]
[1757456619616,5.642,4310.9,4310.8,3.21663579]
[1757456621831,5.642,4310.9,4310.8,2.91283579]
[1757456622864,5.642,4310.9,4310.8,3.21663579]
[1757456626166,1.782,4310.9,4310.8,4.15633579]
[1757456626337,5.642,4310.9,4310.8,4.15633579]
[1757456627273,5.642,4310.9,4310.8,7.83313579]
[1757456627274,0.001,4310.9,4310.8,7.83313579]
[1757456627476,0.001,4310.9,4310.8,7.94833579]
[1757456640160,0.001,4310.9,4310.8,7.49133579]
[1757456641080,0.001,4310.9,4310.8,7.94833579]
[1757456641891,0.001,4310.9,4310.8,7.49133579]
[1757456644055,0.001,4310.9,4310.8,7.00863579]
[1757456646059,0.001,4310.9,4310.8,7.46743579]
[1757456652521,0.001,4310.9,4310.8,7.00863579]
[1757456653719,0.001,4310.9,4310.8,7.46743579]
[1757456658728,0.001,4310.9,4310.8,7.00863579]
[1757456660414,0.001,4310.9,4310.8,13.25289034]
[1757456661257,0.001,4310.9,4310.8,13.71169034]
[1757456662455,0.758,4310.9,4310.8,12.94909034]
[1757456662615,1.258,4310.9,4310.8,12.47320959]
[1757456670984,0.758,4310.9,4310.8,12.47320959]
[1757456671989,1.2445,4310.9,4310.8,11.68120959]
[1757456674390,0.758,4310.9,4310.8,11.68120959]
[1757456675989,0.3037,4310.9,4310.8,11.68120959]
[1757456676212,0.7785,4310.9,4310.8,11.68120959]
[1757456676704,1.265,4310.9,4310.8,11.68120959]
[1757456683732,1.265,4310.9,4310.8,8.68120959]
[1757456683910,1.3916,4310.9,4310.8,8.68120959]
[1757456684104,1.3916,4310.9,4310.8,0.11720001]
[1757456684412,1.3916,4310.9,4310.8,2.43695504]
[1757456684623,1.3916,4310.9,4310.8,0.11720001]
[1757456685146,1.3916,4310.9,4310.8,2.43695504]
[1757456689345,1.3916,4310.9,4310.8,0.11720001]
[1757456690550,1.3916,4310.9,4310.8,2.43695504]
[1757456691349,5.2476,4310.9,4310.8,0.11720001]
[1757456691561,5.2476,4310.9,4310.8,2.43695504]
[1757456691731,5.121,4310.9,4310.8,2.43695504]
[1757456692740,5.121,4310.9,4310.8,8.68120959]
[1757456693761,1.265,4310.9,4310.8,8.68120959]
[1757456693942,5.121,4310.9,4310.8,8.68120959]
[1757456695734,4.6345,4310.9,4310.8,8.68120959]
[1757456696567,0.001,4310.9,4310.8,8.99200959]
[1757456696775,3.857,4310.9,4310.8,9.91190959]
[1757456696933,3.857,4310.9,4310.8,9.44780959]
[1757456697967,3.857,4310.9,4310.8,8.99200959]
[1757456699056,3.857,4310.9,4310.8,8.68120959]
[1757456699777,3.857,4310.9,4310.8,8.99200959]
[1757456701079,0.001,4310.9,4310.8,8.99200959]
[1757456703381,0.001,4310.9,4310.8,8.68120959]
[1757456705483,0.001,4310.9,4310.8,10.59619307]
[1757456711291,0.001,4310.9,4310.8,10.12019307]
[1757456714333,0.001,4310.9,4310.8,8.97430959]
[1757456714521,0.7425,4310.9,4310.8,8.68120959]
[1757456715199,0.001,4310.9,4310.8,8.68120959]
[1757456717213,0.001,4310.9,4310.8,8.97430959]
[1757456717538,0.001,4310.9,4310.8,9.45030959]
[1757456720640,0.001,4310.9,4310.8,8.97430959]
[1757456721036,0.001,4310.9,4310.8,8.68120959]
[1757456722363,0.001,4310.9,4310.8,2.43695504]
[1757456723363,0.7425,4310.9,4310.8,2.43695504]
[1757456724665,1.2358,4310.9,4310.8,2.43695504]
[1757456728366,0.7425,4310.9,4310.8,2.43695504]
[1757456730136,0.001,4310.9,4310.8,2.43695504]
[1757456730460,3.856,4310.9,4310.8,2.73005504]
[1757456731560,3.856,4310.9,4310.8,2.43695504]
[1757456732481,0.001,4310.9,4310.8,2.72675504]
[1757456732658,3.856,4310.9,4310.8,3.19825504]
[1757456733634,0.001,4310.9,4310.8,3.19825504]
[1757456733836,3.855,4310.9,4310.8,3.65835259]
[1757456734040,3.855,4310.9,4310.8,3.63515504]
[1757456735870,0.001,4310.9,4310.8,3.63515504]
[1757456736281,0.001,4310.9,4310.8,3.19825504]
[1757456736491,0.001,4310.9,4310.8,3.22145259]
[1757456737990,0.001,4310.9,4310.8,3.19825504]
[1757456740550,0.001,4310.9,4310.8,2.72675504]
[1757456741485,0.001,4310.9,4310.8,2.43695504]
[1757456743058,0.3111,4310.9,4310.8,2.43695504]
[1757456744387,0.7812,4310.9,4310.8,2.43695504]
[1757456744581,0.3111,4310.9,4310.8,2.43695504]
[1757456744897,0.3111,4310.9,4310.8,0.11720001]
[1757456744898,1.67091,4310.9,4310.8,0.11720001]
[1757456745467,1.67091,4310.9,4310.8,2.43695504]
[1757456745669,1.2543,4310.9,4310.8,2.43695504]
[1757456747000,0.001,4310.9,4310.8,2.61155504]
[1757456747200,3.855,4310.9,4310.8,3.19825504]
[1757456748664,0.001,4310.9,4310.8,3.19825504]
[1757456748870,3.855,4310.9,4310.8,3.19825504]
[1757456750265,3.855,4310.9,4310.8,2.72675504]
[1757456752193,3.855,4310.9,4310.8,3.19825504]
[1757456753418,3.855,4310.9,4310.8,2.72675504]
[1757456757129,0.001,4310.9,4310.8,2.72675504]
[1757456759441,0.001,4310.9,4310.8,2.43695504]
[1757456760814,0.3111,4310.9,4310.8,2.43695504]
[1757456761028,0.7812,4310.9,4310.8,2.43695504]
[1757456761915,0.001,4310.9,4310.8,2.43695504]
[1757456764554,0.3126,4310.9,4310.8,2.43695504]
[1757456764729,0.7587,4310.9,4310.8,2.43695504]
[1757456765119,1.2366,4310.9,4310.8,0.11720001]
[1757456765340,1.74566,4310.9,4310.8,2.43695504]
[1757456765670,1.2366,4310.9,4310.8,2.43695504]
[1757456766526,5.0896,4310.9,4310.8,2.43695504]
[1757456768370,4.6117,4310.9,4310.8,2.43695504]
[1757456769270,5.0896,4310.9,4310.8,2.43695504]
[1757456772348,1.2366,4310.9,4310.8,2.43695504]
[1757456772551,4.6117,4310.9,4310.8,2.43695504]
[1757456773037,5.0896,4310.9,4310.8,2.43695504]
[1757456776185,5.59866,4310.9,4310.8,0.11720001]
[1757456777080,5.59866,4310.9,4310.8,2.43695504]
[1757456777250,5.59866,4310.9,4310.8,0.11720001]
[1757456777657,5.59866,4310.9,4310.8,2.43695504]
[1757456777881,5.59866,4310.9,4310.8,0.11720001]
[1757456778086,5.59866,4310.9,4310.8,2.43695504]
[1757456778581,5.59866,4310.9,4310.8,0.11720001]
[1757456779305,7.91836122,4310.9,4310.8,0.00200001]
[1757456789245,10.91836122,4310.9,4310.8,0.00200001]
[1757456790240,11.09101719,4310.9,4310.8,0.00200001]
[1757456792543,2.32007795,4310.2,4309.8,0.02300001]
[1757456792740,5.634,4310.1,4309.8,0.02300001]
[1757456793445,3.853,4310.0,4309.8,0.49320001]
[1757456793845,3.853,4310.0,4309.9,0.3153]
[1757456794344,3.853,4310.0,4309.8,0.02300001]
[1757456796312,3.853,4310.0,4309.8,0.02500001]
[1757456798255,3.853,4310.0,4309.9,0.3153]
[1757456799042,3.853,4310.0,4309.8,0.02500001]
[1757456805972,4.3131,4310.0,4309.8,0.02500001]
[1757456806269,4.10113396,4310.1,4309.8,0.02500001]
[1757456806270,3.853,4309.9,4309.8,0.02500001]
[1757456806460,4.1481,4309.9,4309.8,0.02500001]
[1757456809974,3.853,4309.9,4309.8,0.02500001]
[1757456813365,3.854,4309.9,4309.8,0.02500001]
[1757456815290,4.1491,4309.9,4309.8,0.02500001]
[1757456821482,5.44702407,4309.9,4309.8,0.02500001]
[1757456821704,7.76726351,4309.9,4309.8,0.02500001]
[1757456823874,4.97412407,4309.9,4309.8,0.02500001]
[1757456825309,7.29436351,4309.9,4309.8,0.02500001]
[1757456826112,4.97412407,4309.9,4309.8,0.02500001]
[1757456826414,4.67902407,4309.9,4309.8,0.02500001]
[1757456827610,3.854,4309.9,4309.8,0.31110001]
[1757456827796,3.854,4309.9,4309.8,0.77480001]
[1757456828307,3.854,4309.9,4309.8,0.31110001]
[1757456833597,3.854,4309.9,4309.8,0.02500001]
[1757456846847,4.17,4309.9,4309.8,0.02500001]
[1757456847954,5.951,4309.9,4309.8,0.02500001]
[1757456848965,5.635,4309.9,4309.8,0.02500001]
[1757456849171,1.782,4309.9,4309.8,0.02500001]
[1757456849475,5.633,4309.9,4309.8,0.02500001]
[1757456850178,5.633,4309.9,4309.8,0.31110001]
[1757456850479,5.633,4309.9,4309.8,0.77480001]
[1757456850666,5.633,4309.9,4309.8,0.31110001]
[1757456853875,5.633,4309.9,4309.8,0.02500001]
[1757456854382,5.9346,4309.9,4309.8,0.02500001]
[1757456855849,5.633,4309.9,4309.8,0.02500001]
[1757456863397,5.9346,4309.9,4309.8,0.02500001]
[1757456866633,5.633,4309.9,4309.8,0.02500001]
[1757456867832,5.9346,4309.9,4309.8,0.02500001]
[1757456868405,9.81404484,4309.9,4309.8,0.02500001]
[1757456869338,7.4938054,4309.9,4309.8,0.02500001]
[1757456873357,9.81404484,4309.9,4309.8,0.02500001]
[1757456876432,9.93004484,4309.9,4309.8,0.02500001]
[1757456878846,9.92904484,4309.9,4309.8,0.02500001]
[1757456880377,6.07904484,4309.9,4309.8,0.02500001]
[1757456880577,9.92904484,4309.9,4309.8,0.02500001]
[1757456881772,6.07904484,4309.9,4309.8,0.02500001]
[1757456881978,9.92904484,4309.9,4309.8,0.02500001]
[1757456886792,6.07904484,4309.9,4309.8,0.02500001]
[1757456887086,9.92904484,4309.9,4309.8,0.02500001]
[1757456887904,9.47334484,4309.9,4309.8,0.02500001]
[1757456891162,9.95884484,4309.9,4309.8,0.02500001]
[1757456896324,10.08917204,4309.9,4309.8,0.02500001]
[1757456896522,9.95884484,4309.9,4309.8,0.02500001]
[1757456898231,4.88134484,4309.9,4309.8,0.02500001]
[1757456898436,8.73134484,4309.9,4309.8,0.02500001]
[1757456899020,8.61534484,4309.9,4309.8,0.31270001]
[1757456900765,8.61534484,4309.9,4309.8,0.02500001]
[1757456902460,8.61534484,4309.9,4309.8,0.31270001]
[1757456902934,8.61534484,4309.9,4309.8,0.02500001]
[1757456903434,8.91684484,4309.9,4309.8,0.02500001]
[1757456907069,9.38844484,4309.9,4309.8,0.02500001]
[1757456907378,9.51887085,4309.9,4309.8,0.02500001]
[1757456909151,8.74577085,4309.9,4309.8,0.31270001]
[1757456909380,8.96321809,4309.9,4309.8,0.31270001]
[1757456909788,8.96321809,4309.9,4309.8,0.02500001]
[1757456910988,8.96321809,4309.9,4309.8,0.79740001]
[1757456910989,5.631,4309.9,4309.8,0.79740001]
[1757456911169,5.631,4309.9,4309.8,1.26040001]
[1757456913491,1.782,4309.9,4309.8,1.26040001]
[1757456913781,5.631,4309.9,4309.8,1.26040001]
[1757456914487,1.782,4309.9,4309.8,0.79740001]
[1757456914784,5.631,4309.9,4309.8,1.27120001]
[1757456916162,1.782,4309.9,4309.8,1.27120001]
[1757456916486,5.631,4309.9,4309.8,1.27120001]
[1757456916786,5.631,4309.9,4309.8,4.57594801]
[1757456916985,5.631,4309.9,4309.8,2.25565473]
[1757456918465,5.631,4309.9,4309.8,1.27120001]
[1757456919201,5.631,4309.9,4309.8,0.79740001]
[1757456924617,5.631,4309.9,4309.8,0.91340001]
[1757456928032,5.631,4309.9,4309.8,0.42870001]
[1757456928432,5.631,4309.9,4309.8,0.14100001]
[1757456929695,5.631,4309.9,4309.8,0.43760001]
[1757456930531,5.631,4309.9,4309.8,0.14100001]
[1757456933746,5.631,4309.9,4309.8,0.43760001]
[1757456939767,5.63,4309.9,4309.8,0.43760001]
[1757456942164,5.63,4309.9,4309.8,0.14100001]
[1757456943872,6.3826,4309.9,4309.8,0.14100001]
[1757456949870,5.924,4309.9,4309.8,0.14100001]
[1757456951687,5.63,4309.9,4309.8,0.14100001]
[1757456964110,5.924,4309.9,4309.8,0.14100001]
[1757456969111,6.3826,4309.9,4309.8,0.14100001]
[1757456974816,2.5346,4309.9,4309.8,0.14100001]
[1757456975119,6.3806,4309.9,4309.8,0.14100001]
[1757456978631,7.82615777,4309.9,4309.8,0.14100001]
[1757456978822,10.26239721,4309.9,4309.8,0.02500001]
[1757456979208,10.47996873,4309.9,4309.8,0.02500001]
[1757456979412,10.26239721,4309.9,4309.8,0.02500001]
[1757456991965,7.94823944,4309.9,4309.8,0.81640001]
[1757456994846,7.94823944,4309.9,4309.8,0.31850001]
[1757456997065,8.71613944,4309.9,4309.8,0.02500001]
[1757456998766,4.87013944,4309.9,4309.8,0.02500001]
[1757456998940,8.26063944,4309.9,4309.8,0.02500001]
[1757456999139,9.4916809,4309.9,4309.8,0.02500001]
[1757456999543,9.9471809,4309.9,4309.8,0.02500001]
[1757457000366,10.4088809,4309.9,4309.8,0.02500001]
[1757457000785,6.5628809,4309.9,4309.8,0.02500001]
[1757457000956,10.4088809,4309.9,4309.8,0.02500001]
[1757457003576,9.9471809,4309.9,4309.8,0.02500001]
[1757457008594,10.16464736,4309.9,4309.8,0.02500001]
[1757457013181,10.63674736,4309.9,4309.8,0.02500001]
[1757457015414,10.16464736,4309.9,4309.8,0.02500001]
[1757457017510,7.94723944,4309.9,4309.8,0.81800001]
[1757457017715,7.94723944,4309.9,4309.8,0.33050001]
[1757457019592,7.94723944,4309.9,4309.8,0.02500001]
[1757457021722,8.25103944,4309.9,4309.8,0.02500001]
[1757457022019,8.72493944,4309.9,4309.8,0.02500001]
[1757457022321,9.42699307,4309.9,4309.8,0.02500001]
[1757457022695,9.64449091,4309.9,4309.8,0.02500001]
[1757457022898,9.17239091,4309.9,4309.8,0.02500001]
[1757457023220,8.69849091,4309.9,4309.8,0.02500001]
[1757457023393,8.16473728,4309.9,4309.8,0.33050001]
[1757457023793,7.94723944,4309.9,4309.8,0.33050001]
[1757457024123,7.94723944,4309.9,4309.8,1.26750001]
[1757457024414,7.94723944,4309.9,4309.8,0.81800001]
[1757457025502,7.94723944,4309.9,4309.8,0.33050001]
[1757457026549,8.25103944,4309.9,4309.8,0.02500001]
[1757457026922,7.94723944,4309.9,4309.8,0.02500001]
[1757457034760,1.782,4309.9,4309.8,0.82540001]
[1757457034963,5.627,4309.9,4309.8,1.26480001]
[1757457035120,7.94723944,4309.9,4309.8,1.26480001]
[1757457035553,1.782,4309.9,4309.8,2.01644296]
[1757457035752,5.627,4309.9,4309.8,2.13244296]
[1757457035956,5.627,4309.9,4309.8,7.63242954]
[1757457036126,5.627,4309.9,4309.8,6.39262954]
[1757457036333,1.782,4309.9,4309.8,0.14100001]
[1757457036554,6.3883,4309.9,4309.8,0.02500001]
[1757457036760,9.79756944,4309.9,4309.8,0.02500001]
[1757457040662,10.01497346,4309.9,4309.8,0.02500001]
[1757457040875,10.14542001,4309.9,4309.8,0.02500001]
[1757457047498,15.10763725,4309.9,4309.8,1e-08]
[1757457047647,15.31615886,4309.9,4309.8,1e-08]
[1757457048491,14.48124903,4309.9,4309.8,1e-08]
[1757457050394,15.10631111,4309.9,4309.8,1e-08]
[1757457051558,14.48124903,4309.9,4309.8,1e-08]
[1757457052380,15.10591868,4309.9,4309.8,1e-08]
[1757457052766,15.1050967,4309.9,4309.8,1e-08]
[1757457055312,14.48042705,4309.9,4309.8,1e-08]
[1757457057188,14.48211056,4309.9,4309.8,1e-08]
[1757457061324,3.80761056,4309.9,4309.8,0.80040001]
[1757457061503,7.99623944,4309.9,4309.8,1.23980001]
[1757457061823,10.99623944,4309.9,4309.8,1.23980001]
[1757457070737,10.99623944,4309.9,4309.8,0.80040001]
[1757457076838,10.99623944,4309.9,4309.8,1.26320001]
[1757457077038,7.99623944,4309.9,4309.8,1.26320001]
[1757457078067,7.99623944,4309.9,4309.8,0.80040001]
[1757457078924,7.98723944,4309.9,4309.8,0.80040001]
[1757457079820,7.98723944,4309.9,4309.8,0.30810001]
[1757457080950,8.10323944,4309.9,4309.8,0.30810001]
[1757457084762,8.10323944,4309.9,4309.8,1e-08]
[1757457086667,8.10323944,4309.9,4309.8,0.29790001]
[1757457086868,8.10023944,4309.9,4309.8,0.78740001]
[1757457087029,8.10023944,4309.9,4309.8,1.25020001]
[1757457087226,8.10023944,4309.9,4309.8,1.37522001]
[1757457087227,1.783,4309.9,4309.8,1.37522001]
[1757457087464,1.783,4309.9,4309.8,3.69551329]
[1757457087465,5.664,4309.9,4309.8,3.69551329]
[1757457089254,1.783,4309.9,4309.8,3.69551329]
[1757457089432,5.663,4309.9,4309.8,3.69551329]
[1757457092049,1.783,4309.9,4309.8,3.69551329]
[1757457092256,5.662,4309.9,4309.8,3.69551329]
[1757457097289,5.662,4309.9,4309.8,3.81151329]
[1757457097988,1.783,4309.9,4309.8,3.81151329]
[1757457098186,5.659,4309.9,4309.8,3.81151329]
[1757457102235,1.783,4309.9,4309.8,3.81151329]
[1757457102523,5.658,4309.9,4309.8,3.81151329]
[1757457104707,5.657,4309.9,4309.8,3.78181329]
[1757457106207,1.783,4309.9,4309.8,3.78181329]
[1757457106521,5.656,4309.9,4309.8,3.78181329]
[1757457110692,5.656,4309.9,4309.8,3.34871329]
[1757457110891,5.656,4309.9,4309.8,3.78181329]
[1757457111585,5.656,4309.9,4309.8,3.34871329]
[1757457115993,3.874,4309.9,4309.8,3.34871329]
[1757457118712,0.001,4309.9,4309.8,4.45781329]
[1757457118899,0.001,4310.4,4310.0,0.792]
[1757457119101,0.001,4310.4,4310.3,10.63202296]
[1757457119327,0.001,4310.4,4310.3,13.94802296]
[1757457119677,0.001,4310.4,4310.3,14.83712296]
[1757457123402,0.001,4310.4,4310.3,14.83712296]
[1757457125532,0.001,4310.4,4310.3,14.40402296]
[1757457125737,0.001,4310.4,4310.3,16.2587154]
[1757457132948,0.001,4310.4,4310.3,16.7140154]
[1757457134493,0.001,4310.4,4310.3,16.2587154]
[1757457135818,0.001,4310.4,4310.3,16.7140154]
[1757457136305,0.026,4310.8,4310.7,2.31980884]
[1757457136449,0.026,4310.8,4310.7,9.5171878]
[1757457136647,0.026,4310.8,4310.7,10.40568972]
[1757457137053,0.026,4310.8,4310.7,10.49849726]
[1757457142587,0.026,4310.8,4310.7,10.40568972]
[1757457144811,0.001,4310.9,4310.7,10.40568972]
[1757457144812,0.001,4310.9,4310.8,6.11175503]
[1757457145101,0.001,4310.9,4310.8,15.69659268]
[1757457145260,0.001,4310.9,4310.8,16.00049268]
[1757457145764,0.001,4310.9,4310.8,17.66378021]
[1757457145964,0.001,4311.2,4311.1,3.1115936]
[1757457146165,0.001,4311.2,4311.1,11.82728604]
[1757457146381,0.001,4311.2,4311.1,12.13118604]
[1757457146584,0.001,4311.2,4311.1,13.07908604]
[1757457147369,0.001,4311.2,4311.1,12.62378604]
[1757457148398,0.001,4311.2,4311.1,18.86746026]
[1757457148702,0.001,4311.2,4311.1,25.11113448]
[1757457148901,0.001,4311.2,4311.1,25.56643448]
[1757457149080,0.001,4311.2,4311.1,25.11113448]
[1757457150388,0.001,4311.2,4311.1,18.86746026]
[1757457150799,0.001,4311.2,4311.1,19.32276026]
[1757457151191,0.001,4311.7,4311.5,6.1113784]
[1757457151384,0.001,4311.7,4311.5,16.5262335]
[1757457151728,0.001,4311.7,4311.5,17.3227335]
[1757457152303,0.001,4311.7,4311.5,17.7675335]
[1757457154931,0.001,4311.7,4311.5,17.8827335]
[1757457155298,0.001,4311.7,4311.6,6.11132461]
[1757457155632,0.001,4311.7,4311.6,8.23936342]
[1757457155784,0.026,4311.8,4311.6,8.23936342]
[1757457155785,0.001,4312.1,4311.8,6.11121703]
[1757457156131,0.001,4312.1,4311.8,9.97121703]
[1757457156332,0.001,4312.1,4311.8,10.28511703]
[1757457156493,0.001,4312.1,4311.8,10.85141703]
[1757457156695,0.001,4312.1,4311.8,12.70610947]
[1757457157750,0.001,4312.1,4311.8,12.25500947]
[1757457159747,1.2679,4311.9,4311.8,11.94110947]
[1757457161466,0.7871,4311.9,4311.8,11.94110947]
[1757457161774,0.04,4311.9,4311.8,11.94110947]
[1757457162678,0.7871,4311.9,4311.8,11.94110947]
[1757457163240,0.04,4311.9,4311.8,11.94110947]
[1757457164576,0.3321,4311.9,4311.8,11.94110947]
[1757457164967,0.04,4311.9,4311.8,12.70610947]
[1757457165796,0.04,4311.9,4311.8,12.25500947]
[1757457168348,0.001,4312.1,4312.0,3.11110946]
[1757457168561,0.001,4312.1,4312.0,16.54615565]
[1757457168787,0.001,4312.1,4312.0,17.28796456]
[1757457169889,0.001,4312.1,4312.0,17.74296456]
[1757457170092,0.001,4312.1,4312.0,16.83686456]
[1757457170385,0.001,4312.1,4312.0,16.92963679]
[1757457176011,0.001,4312.1,4312.0,16.61573679]
[1757457182187,1.2184,4312.1,4312.0,5.72306257]
[1757457182510,1.2184,4312.1,4312.0,16.20778368]
[1757457190781,1.2184,4312.1,4312.0,5.31910946]
[1757457190980,1.2184,4312.1,4311.9,2.3191122]
[1757457191210,0.923,4312.0,4311.8,2.43639494]
[1757457191408,0.001,4312.1,4311.9,2.31916324]
[1757457191717,0.001,4312.1,4311.8,0.1172]
[1757457191718,0.2944,4311.9,4311.8,0.1172]
[1757457191919,1.2174,4311.9,4311.8,0.1172]
[1757457192077,3.65840324,4311.9,4311.8,0.1172]
[1757457192280,1.33924,4311.9,4311.8,0.1172]
[1757457192802,3.65840324,4311.9,4311.8,0.002]
[1757457193893,5.19324,4311.9,4311.8,0.1172]
[1757457194607,5.19424,4311.9,4311.8,0.1172]
[1757457197807,1.33924,4311.9,4311.8,0.1172]
[1757457198006,5.19424,4311.9,4311.8,0.1172]
[1757457199815,7.51340324,4311.9,4311.8,0.002]
[1757457204326,3.65840324,4311.9,4311.8,0.002]
[1757457204530,5.19324,4311.9,4311.8,0.002]
[1757457205266,7.51240324,4311.9,4311.8,0.002]
[1757457205462,5.19324,4311.9,4311.8,0.002]
[1757457206060,5.19424,4311.9,4311.8,0.002]
[1757457209968,3.854,4311.9,4311.8,0.7674]
[1757457210175,3.854,4311.9,4311.8,3.20181703]
[1757457210373,0.001,4311.9,4311.8,3.20181703]
[1757457210570,0.001,4311.9,4311.8,4.4835092]
[1757457210881,0.001,4311.9,4311.8,5.90341304]
[1757457211085,0.001,4311.9,4311.8,5.88022087]
[1757457216992,0.001,4311.9,4311.8,5.41372087]
[1757457217365,0.001,4311.9,4311.8,3.85632087]
[1757457217587,0.3121,4311.9,4311.8,2.43641703]
[1757457217795,0.7671,4311.9,4311.8,0.1172]
[1757457218103,0.7671,4311.9,4311.8,2.43641703]
[1757457218710,0.001,4311.9,4311.8,2.43641703]
[1757457219084,0.001,4311.9,4311.8,2.73841703]
[1757457219988,0.001,4311.9,4311.8,3.59286892]
[1757457220183,0.001,4311.9,4311.8,0.97165189]
[1757457220391,0.001,4311.9,4311.8,0.1172]
[1757457221408,0.001,4311.9,4311.8,3.22521703]
[1757457223826,0.001,4311.9,4311.8,2.73841703]
[1757457224201,0.001,4311.9,4311.8,3.22521703]
[1757457225749,0.001,4311.9,4311.8,2.73841703]
[1757457228707,0.001,4311.9,4311.8,5.05186291]
[1757457228909,0.001,4311.9,4311.8,5.02867074]
[1757457229534,0.001,4311.9,4311.8,4.57167074]
[1757457232974,0.001,4311.9,4311.8,7.57167074]
[1757457233139,0.001,4311.9,4311.8,8.02867074]
[1757457233340,0.001,4311.9,4311.8,11.88067074]
[1757457240400,0.001,4312.1,4312.0,6.11110946]
[1757457240572,0.001,4312.1,4312.0,12.23001743]
[1757457240776,0.001,4312.1,4312.0,12.53201743]
[1757457240972,0.001,4312.1,4312.0,13.47581743]
[1757457241310,0.001,4312.5,4312.2,0.792]
[1757457241597,0.001,4312.5,4312.4,13.62230229]
[1757457241898,0.001,4312.5,4312.4,14.50025274]
[1757457242055,0.001,4312.5,4312.4,15.43375274]
[1757457242991,0.001,4312.5,4312.4,15.52651249]
[1757457244368,0.001,4312.5,4312.4,15.08951249]
[1757457244701,0.001,4312.5,4312.4,14.29071249]
[1757457244998,0.001,4312.5,4312.4,14.59301249]
[1757457245205,0.001,4312.5,4312.4,14.50025274]
[1757457248326,0.001,4312.5,4312.4,7.1040448]
[1757457248527,0.001,4312.5,4312.4,14.50025274]
[1757457249506,0.001,4312.6,4312.5,5.31884057]
[1757457249703,0.026,4312.8,4312.7,6.11073304]
[1757457250038,0.026,4312.8,4312.7,10.26403304]
[1757457250238,0.026,4312.8,4312.7,10.45823304]
[1757457250437,0.026,4312.8,4312.7,9.96173304]
[1757457250940,0.026,4312.8,4312.7,10.26403304]
[1757457251099,0.026,4312.8,4312.7,12.53194101]
[1757457251637,0.026,4312.8,4312.7,13.02844101]
[1757457252537,0.026,4312.8,4312.7,12.53194101]
[1757457252902,0.026,4312.8,4312.7,12.22964101]
[1757457253103,0.3216,4312.8,4312.7,12.22964101]
[1757457253731,0.026,4312.8,4312.7,12.22964101]
[1757457253931,0.026,4312.8,4312.7,12.53194101]
[1757457259741,0.026,4312.8,4312.7,12.22964101]
[1757457261616,1.2235,4312.8,4312.7,12.22864101]
[1757457261828,1.2235,4312.8,4312.7,9.96073304]
[1757457264577,1.2235,4312.8,4312.7,6.96073304]
[1757457266097,1.2235,4312.8,4312.7,6.16873304]
[1757457266261,1.2235,4312.8,4312.7,5.31873304]
[1757457270310,1.2235,4312.8,4312.7,11.55888856]
[1757457270489,0.026,4312.8,4312.7,18.673358]
[1757457270814,0.026,4312.8,4312.7,19.169858]
[1757457274220,0.7639,4312.8,4312.7,18.371058]
[1757457275280,1.235,4312.8,4312.7,18.371058]
[1757457275595,1.235,4312.8,4312.7,16.20088856]
[1757457276219,1.235,4312.8,4312.7,16.31608856]
[1757457280042,0.7639,4312.8,4312.7,16.31608856]
[1757457281660,0.3173,4312.8,4312.7,16.31608856]
[1757457281809,0.7639,4312.8,4312.7,16.31608856]
[1757457283345,0.7639,4312.8,4312.7,18.577178]
[1757457285259,0.3173,4312.8,4312.7,18.577178]
[1757457288986,0.7639,4312.8,4312.7,16.31608856]
[1757457289167,1.235,4312.8,4312.7,16.31608856]
[1757457289467,0.7639,4312.8,4312.7,16.31608856]
[1757457290566,0.3173,4312.8,4312.7,16.31608856]
[1757457293386,0.7639,4312.8,4312.7,16.31608856]
[1757457293588,1.235,4312.8,4312.7,5.43393304]
[1757457293776,1.3626,4312.8,4312.7,0.1152]
[1757457295685,1.235,4312.8,4312.7,2.43393304]
[1757457297558,1.235,4312.8,4312.7,0.1152]
[1757457297958,1.235,4312.8,4312.7,2.43393304]
[1757457298289,1.235,4312.8,4312.7,0.1152]
[1757457298454,1.235,4312.8,4312.7,2.43393304]
[1757457298763,1.235,4312.8,4312.7,0.1152]
[1757457299393,1.5406,4312.8,4312.7,0.1152]
[1757457299692,1.5406,4312.8,4312.6,0.002]
[1757457300676,3.85,4312.7,4312.6,0.002]
[1757457301081,4.1413,4312.7,4312.6,0.002]